bitfinex-derivatives/quotes_ETHF0:USTF0_20260123
["timestamp","ask_amount","ask_price","bid_price","bid_amount"]
[1769198091459,0.00507657,2956.5,2955.4,1.05864928]
[1769198093261,0.00507657,2956.5,2955.8,0.88925928]
[1769198093756,0.00507657,2956.5,2955.7,0.16937]
[1769198095968,0.00260335,2956.7,2955.8,4.5656692]
[1769198096264,0.00260335,2956.7,2955.8,4.57074577]
[1769198099368,0.00260335,2956.7,2955.8,4.74010577]
[1769198100459,0.00260335,2956.7,2956.0,0.88925928]
[1769198100664,0.88925928,2957.5,2956.2,0.88925928]
[1769198100860,0.88925928,2957.5,2956.1,0.16935]
[1769198101065,0.88925928,2957.3,2956.1,0.16935]
[1769198101665,0.89239957,2957.3,2956.1,0.16935]
[1769198102268,0.00314029,2957.3,2956.4,4.41383575]
[1769198103566,0.00314029,2957.3,2956.7,0.16931]
[1769198103766,0.88925928,2957.9,2956.7,0.16931]
[1769198104471,4.58291325,2958.1,2956.9,0.1693]
[1769198104668,0.00381043,2958.1,2957.1,1.05854928]
[1769198104870,0.00381043,2958.1,2957.1,0.16929]
[1769198105577,0.00381043,2958.1,2957.3,0.00507657]
[1769198106471,0.88925928,2957.7,2956.9,0.00299702]
[1769198106875,0.89433585,2958.0,2956.9,0.00299702]
[1769198107465,0.00507657,2958.0,2956.9,0.00299702]
[1769198107666,0.00507657,2958.0,2956.9,1.0615563]
[1769198107872,0.00507657,2958.0,2957.0,0.1693]
[1769198108976,0.88925928,2957.8,2956.9,0.00299702]
[1769198109476,4.46365724,2958.0,2956.9,0.00299702]
[1769198110670,3.56932139,2957.9,2956.9,0.00299702]
[1769198111577,0.00507657,2958.0,2957.0,0.88925928]
[1769198113668,0.00507657,2958.0,2956.9,0.00299702]
[1769198113669,4.45858067,2957.9,2956.9,0.00299702]
[1769198113873,0.88925928,2957.7,2956.9,0.00299702]
[1769198114386,4.45858067,2957.7,2956.9,0.00299702]
[1769198114577,4.45858067,2957.4,2956.4,0.16933]
[1769198115076,3.56932139,2957.4,2956.4,0.16933]
[1769198115476,3.56932139,2957.4,2956.4,0.17310851]
[1769198115676,3.56932139,2957.9,2956.4,0.17310851]
[1769198115879,3.56932139,2957.9,2956.5,0.16933]
[1769198117083,3.56932139,2957.7,2956.4,0.00377851]
[1769198118874,0.17431657,2958.0,2956.4,0.00377851]
[1769198118875,3.56932139,2957.5,2956.4,0.00377851]
[1769198122578,3.56932139,2957.5,2956.4,0.17310851]
[1769198125589,3.56932139,2957.5,2956.5,0.16932]
[1769198125782,3.56932139,2957.9,2956.6,0.16932]
[1769198126382,4.51580606,2957.8,2956.6,0.16932]
[1769198126585,3.56932139,2957.8,2956.6,0.16932]
[1769198130484,0.00507657,2958.0,2956.9,0.1693]
[1769198130792,0.00507657,2958.0,2957.0,0.1693]
[1769198133995,3.70367688,2957.9,2957.0,0.1693]
[1769198134591,3.70367688,2957.9,2956.4,3.78545413]
[1769198134896,3.70367688,2957.7,2956.4,0.17310851]
[1769198135096,3.70367688,2957.5,2956.4,0.17310851]
[1769198136390,3.70367688,2957.5,2956.5,0.16932]
[1769198138099,3.70367688,2957.9,2956.5,0.16932]
[1769198138300,1.28004308,2957.8,2956.5,0.16932]
[1769198138492,0.9495589,2957.7,2956.5,0.16932]
[1769198138694,0.9495589,2957.6,2956.5,0.16932]
[1769198138894,3.70367688,2957.8,2956.5,0.16932]
[1769198139098,0.94969809,2957.7,2956.5,0.16932]
[1769198139401,3.70367688,2957.8,2956.5,0.16932]
[1769198139601,0.94986114,2957.7,2956.5,0.16932]
[1769198139797,3.70367688,2957.8,2956.5,0.16932]
[1769198139994,0.94986432,2957.7,2956.5,0.16932]
[1769198140189,3.70367688,2957.8,2956.5,0.16932]
[1769198140493,3.70367688,2957.8,2956.8,0.16931]
[1769198140693,3.70367688,2957.8,2956.9,0.1693]
[1769198142197,0.00507657,2958.0,2956.9,0.1693]
[1769198142397,0.00507657,2958.0,2957.0,0.1693]
[1769198145496,0.00507657,2958.0,2957.3,0.16927]
[1769198145702,0.00507657,2958.0,2957.4,0.16927]
[1769198145896,3.70367688,2958.7,2957.1,3.61234562]
[1769198146097,1.28079838,2958.6,2957.1,3.61234562]
[1769198146299,3.70367688,2958.7,2957.1,3.61234562]
[1769198146300,0.95013164,2958.5,2957.1,3.61234562]
[1769198146502,3.70367688,2958.7,2957.6,0.16926]
[1769198146698,3.70367688,2958.5,2957.0,0.17436657]
[1769198146898,3.70655087,2958.5,2957.0,0.17436657]
[1769198147098,3.70655087,2958.5,2957.1,0.16929]
[1769198147500,3.70655087,2958.5,2957.2,0.16928]
[1769198149402,3.70655087,2958.5,2957.4,0.16927]
[1769198153506,0.94913076,2958.4,2957.4,0.16927]
[1769198153707,3.70655087,2958.5,2957.4,0.16927]
[1769198158411,3.70655087,2958.5,2957.5,0.16927]
[1769198162219,0.00287399,2958.5,2957.6,0.16926]
[1769198162430,3.66453935,2958.5,2957.6,0.16926]
[1769198165137,3.66453935,2958.5,2957.1,0.16929]
[1769198165435,3.66453935,2958.5,2957.2,0.16928]
[1769198165636,3.66453935,2958.5,2957.4,0.16927]
[1769198168131,3.66453935,2958.5,2957.5,0.16927]
[1769198169036,0.00287399,2958.5,2957.0,3.49061226]
[1769198169338,0.00287399,2958.5,2958.0,0.16924]
[1769198169527,3.74712442,2959.0,2958.1,0.16923]
[1769198170538,3.75130219,2959.0,2958.1,0.16923]
[1769198176934,4.63929464,2959.0,2957.5,0.16927]
[1769198177236,3.74712442,2958.6,2957.6,0.16926]
[1769198177741,3.74712442,2958.6,2957.6,0.88799245]
[1769198179641,3.74712442,2958.6,2957.9,0.16924]
[1769198184846,0.89217022,2959.0,2957.9,0.16924]
[1769198185047,4.63929464,2959.0,2957.9,0.16924]
[1769198188045,3.74712442,2958.8,2957.9,0.16924]
[1769198191256,0.00417777,2959.0,2958.2,0.16923]
[1769198194459,3.69127358,2959.0,2958.2,0.16923]
[1769198199662,0.95102147,2958.9,2958.2,0.16923]
[1769198199958,10.11009581,2959.5,2957.1,9.43381261]
[1769198199959,3.68709581,2959.5,2958.7,0.88799245]
[1769198200264,4.01835875,2959.4,2958.1,0.88799245]
[1769198200455,3.68709581,2959.2,2957.9,0.16924]
[1769198200754,4.57508826,2959.2,2957.9,0.16924]
[1769198200960,0.00507657,2958.8,2957.9,0.17170657]
[1769198204758,3.69217238,2958.8,2957.9,0.17170657]
[1769198206466,0.33102576,2958.7,2957.9,0.17170657]
[1769198206673,3.69217238,2958.8,2957.9,0.17170657]
[1769198206865,0.33104048,2958.7,2957.9,0.17170657]
[1769198207061,3.69217238,2958.8,2957.9,0.17170657]
[1769198207259,0.33103927,2958.7,2957.9,0.17170657]
[1769198207564,3.69217238,2958.8,2957.9,0.17170657]
[1769198207956,3.68709581,2958.6,2957.3,1.05726245]
[1769198208166,3.68709581,2958.4,2957.3,0.16927]
[1769198208555,3.68709581,2958.2,2957.3,0.16927]
[1769198209064,3.68709581,2958.2,2957.3,0.17234945]
[1769198215563,4.57508826,2958.2,2957.3,0.00307945]
[1769198215768,4.57508826,2958.2,2956.7,1.05730245]
[1769198216161,4.57508826,2958.2,2956.8,0.16931]
[1769198216370,4.57508826,2958.2,2956.9,0.88799245]
[1769198216769,4.57508826,2958.2,2956.9,0.89140881]
[1769198217168,4.57508826,2958.2,2956.9,1.06070881]
[1769198219876,3.68709581,2958.2,2956.9,0.89140881]
[1769198220578,3.68709581,2958.2,2957.1,0.16929]
[1769198222776,3.5819738,2957.9,2956.9,0.00341636]
[1769198222980,4.46996625,2957.6,2956.5,0.16932]
[1769198223478,3.5819738,2957.6,2956.5,1.05731245]
[1769198223678,3.7512138,2958.1,2956.7,0.88799245]
[1769198223868,3.7512138,2958.1,2956.7,0.89048874]
[1769198223869,4.52317213,2958.0,2956.7,0.89048874]
[1769198224068,3.5819738,2958.0,2957.1,0.88799245]
[1769198225781,3.5819738,2958.0,2956.9,1.05729245]
[1769198226284,3.5819738,2958.0,2956.9,0.1693]
[1769198228486,3.5819738,2958.0,2956.9,1.05729245]
[1769198229382,3.5819738,2958.0,2957.1,0.16929]
[1769198229583,3.63636937,2958.4,2957.2,0.88799245]
[1769198229783,3.63636937,2958.4,2957.2,1.05727245]
[1769198230386,3.63636937,2958.4,2957.4,0.88799245]
[1769198230888,3.6400517,2959.2,2957.9,0.88799245]
[1769198231074,3.6400517,2959.2,2958.0,0.16924]
[1769198233082,0.00507657,2958.9,2958.1,0.16923]
[1769198234186,6.57e-06,2958.9,2958.5,0.88799245]
[1769198234388,0.00368233,2959.2,2958.6,0.1692]
[1769198235582,0.00368233,2959.2,2958.6,0.17427657]
[1769198238486,0.00368233,2959.2,2958.7,0.1692]
[1769198238686,3.385,2959.7,2958.7,0.1692]
[1769198238687,3.385,2959.7,2958.8,0.16919]
[1769198239283,3.63636937,2960.4,2959.3,0.16916]
[1769198239680,3.63937233,2960.4,2959.3,0.17198716]
[1769198239887,3.63937233,2960.4,2959.3,0.00282716]
[1769198240192,3.63937233,2960.4,2958.6,0.00507657]
[1769198240585,3.63937233,2960.4,2958.9,0.16919]
[1769198241188,3.63937233,2960.4,2958.9,0.17180008]
[1769198242897,3.63937233,2960.4,2959.0,0.16918]
[1769198243090,0.00300296,2960.4,2958.9,4.59595983]
[1769198243296,0.00300296,2960.4,2959.3,0.88748262]
[1769198243691,0.00300296,2960.4,2959.6,0.16914]
[1769198243895,0.00300296,2960.4,2959.8,0.16914]
[1769198244498,3.384,2960.9,2959.4,3.70586713]
[1769198245298,3.384,2960.9,2959.4,5.58586713]
[1769198245602,3.38685213,2960.9,2960.0,0.16912]
[1769198246101,3.63636937,2960.8,2959.5,0.16915]
[1769198246289,3.63636937,2960.8,2959.6,0.16915]
[1769198246491,3.63636937,2960.8,2959.4,1.88]
[1769198246798,0.00506739,2960.7,2959.4,1.88]
[1769198247189,0.00506739,2960.7,2959.4,5.58586713]
[1769198247396,0.00506739,2960.7,2959.9,0.16913]
[1769198247795,0.00506739,2960.7,2959.5,3.70586713]
[1769198247995,40.8,2961.6,2960.1,0.88748262]
[1769198247996,3.63636937,2961.6,2960.1,0.88748262]
[1769198249199,3.63873984,2961.6,2960.4,0.1691]
[1769198250998,3.63636937,2962.2,2961.0,0.16907]
[1769198251397,3.63636937,2962.2,2961.1,0.16906]
[1769198251804,3.63636937,2962.2,2960.5,0.16909]
[1769198252402,3.63980073,2962.2,2960.5,0.17149585]
[1769198252698,3.53822109,2962.0,2960.5,0.17149585]
[1769198252899,3.53822109,2961.6,2960.5,0.00240585]
[1769198254201,3.53822109,2962.1,2960.6,0.88748262]
[1769198254401,3.53822109,2962.1,2960.9,0.16907]
[1769198254601,9.549,2962.0,2961.0,0.16906]
[1769198255296,0.00343136,2962.2,2961.1,0.16906]
[1769198255700,9.553,2962.1,2961.2,0.16906]
[1769198255900,3.53822109,2962.0,2961.0,0.00352943]
[1769198256296,3.53822109,2962.0,2960.7,0.16908]
[1769198256502,0.88748262,2961.8,2960.2,0.16911]
[1769198256802,13.09622109,2961.7,2960.3,0.16911]
[1769198257001,3.53822109,2961.6,2960.3,0.16911]
[1769198257304,8.793,2961.5,2960.4,0.1691]
[1769198257709,3.53822109,2961.6,2960.4,0.1691]
[1769198257901,8.991,2961.5,2960.4,0.1691]
[1769198260410,9.558,2961.4,2960.5,0.16909]
[1769198261209,3.53822109,2961.3,2960.3,0.00406182]
[1769198263712,3.53822109,2961.3,2960.0,0.17418739]
[1769198264113,3.53822109,2961.3,2960.2,0.16911]
[1769198264405,9.571,2961.2,2960.4,0.1691]
[1769198264710,9.571,2961.2,2960.4,0.17327986]
[1769198264908,3.53822109,2961.1,2960.4,0.17327986]
[1769198265112,3.53822109,2961.1,2960.0,0.00506739]
[1769198266013,3.53822109,2961.1,2960.0,0.0076573]
[1769198267013,3.53822109,2960.9,2960.0,0.0076573]
[1769198267912,9.58,2960.8,2960.0,0.1767773]
[1769198269310,3.53822109,2960.9,2960.0,0.1767773]
[1769198269514,9.583,2960.8,2960.0,0.1767773]
[1769198273614,4.48039034,2960.7,2959.5,0.16915]
[1769198273811,4.48039034,2960.6,2959.5,0.16915]
[1769198274014,4.48039034,2960.5,2959.5,0.16915]
[1769198274214,3.53822109,2960.5,2959.5,0.16915]
[1769198274709,3.53822109,2960.5,2959.5,0.17238912]
[1769198275507,3.53822109,2960.5,2959.6,0.16915]
[1769198282520,3.44028855,2960.9,2959.9,0.16913]
[1769198282721,9.595,2960.8,2959.9,0.16913]
[1769198283017,6.213,2960.8,2959.9,0.16913]
[1769198284021,9.65828855,2960.9,2959.9,0.16913]
[1769198284319,13.04028855,2960.9,2959.9,0.16913]
[1769198285514,0.00506739,2960.7,2959.9,0.16913]
[1769198285715,0.00506739,2960.7,2960.0,0.16912]
[1769198286724,0.00506739,2960.7,2960.1,0.16912]
[1769198288726,13.24528855,2961.3,2960.2,0.16911]
[1769198289020,6.82228855,2961.3,2960.2,0.16911]
[1769198289927,3.79970349,2961.8,2960.5,0.16909]
[1769198290225,3.79970349,2961.6,2960.5,0.16909]
[1769198290420,3.79970349,2961.4,2960.1,0.00506739]
[1769198290722,4.74361322,2961.3,2960.1,0.17418739]
[1769198290924,3.79970349,2961.3,2960.1,0.17418739]
[1769198291519,3.79970349,2961.1,2960.1,0.17418739]
[1769198292426,3.79970349,2961.1,2960.2,0.16911]
[1769198293230,6.24,2961.2,2960.3,0.16911]
[1769198293827,6.242,2961.3,2960.3,0.16911]
[1769198295627,6.247,2961.4,2960.3,0.16911]
[1769198295823,0.94410934,2961.3,2960.4,0.1691]
[1769198296019,6.423,2961.9,2960.6,0.16909]
[1769198296020,6.248,2961.8,2960.6,0.16909]
[1769198296222,1.27435889,2961.7,2960.6,0.16909]
[1769198296419,0.94413073,2961.6,2960.6,0.16909]
[1769198296624,0.94413073,2961.5,2960.6,0.16909]
[1769198296818,0.94413073,2961.5,2960.1,3.73019539]
[1769198296819,3.80313485,2962.2,2960.4,3.725128]
[1769198297019,0.94435505,2962.1,2960.4,3.725128]
[1769198297318,3.80313485,2962.2,2961.2,0.16905]
[1769198297723,3.79970349,2963.5,2961.9,0.16902]
[1769198297923,4.74360912,2963.4,2962.0,0.16901]
[1769198298126,3.79970349,2963.3,2962.0,0.16901]
[1769198298731,3.80368235,2963.3,2962.4,0.00506739]
[1769198301528,3.79970349,2963.0,2962.0,0.00408424]
[1769198303234,0.00506739,2963.1,2962.0,0.00408424]
[1769198303435,3.80477088,2963.1,2962.0,0.00408424]
[1769198303631,3.80477088,2963.1,2961.5,0.16904]
[1769198303837,3.79970349,2962.9,2960.9,3.55007]
[1769198304042,3.79970349,2962.9,2960.9,3.381]
[1769198304735,6.286,2962.8,2960.9,3.38489517]
[1769198304927,3.79970349,2962.7,2960.9,3.38489517]
[1769198305531,3.79970349,2962.7,2961.2,0.16905]
[1769198306638,3.79970349,2962.5,2961.2,0.16905]
[1769198308636,3.79970349,2962.3,2960.9,0.00389517]
[1769198308841,0.93880031,2962.2,2960.9,0.00389517]
[1769198309041,3.79970349,2962.1,2960.9,0.00389517]
[1769198309241,10.10970349,2962.1,2960.9,0.17296517]
[1769198309943,3.79970349,2962.1,2961.0,0.16907]
[1769198311041,3.79970349,2962.1,2961.3,0.16905]
[1769198313141,3.79970349,2962.1,2960.9,0.00389517]
[1769198314439,3.79970349,2962.1,2960.2,0.16911]
[1769198314743,3.7149365,2961.8,2960.2,0.16911]
[1769198315643,3.7149365,2961.8,2960.2,0.17230932]
[1769198316237,0.00506739,2961.3,2960.2,0.17230932]
[1769198317045,0.00506739,2961.3,2960.4,0.1691]
[1769198320544,3.72000389,2961.3,2960.2,0.00319932]
[1769198321148,6.358,2961.2,2960.2,0.00319932]
[1769198321347,3.7149365,2961.1,2959.8,0.16913]
[1769198322448,3.7149365,2961.1,2959.8,0.17318937]
[1769198323148,3.7149365,2961.1,2959.8,0.00405937]
[1769198323353,3.7149365,2960.9,2959.2,0.16917]
[1769198324450,3.7149365,2960.9,2959.2,0.17239033]
[1769198324650,0.94056009,2960.8,2959.2,0.17239033]
[1769198324846,3.7149365,2960.9,2959.2,0.17239033]
[1769198325053,0.940562,2960.8,2959.2,0.17239033]
[1769198325253,3.7149365,2960.6,2959.2,0.17239033]
[1769198328557,10.0979365,2960.6,2959.2,0.17239033]
[1769198328750,3.7149365,2961.0,2959.4,0.16916]
[1769198331546,3.7149365,2960.8,2959.4,0.16916]
[1769198332252,3.7149365,2960.8,2959.6,0.16914]
[1769198333150,6.438,2960.7,2959.6,0.16914]
[1769198333749,3.7149365,2960.6,2959.6,0.16914]
[1769198338956,10.2139365,2960.6,2959.6,0.16914]
[1769198341054,3.7149365,2960.5,2959.6,0.16914]
[1769198342254,6.53,2960.7,2959.6,0.16914]
[1769198342461,0.94367041,2960.6,2959.6,0.16914]
[1769198342760,6.53,2960.7,2959.6,0.16914]
[1769198342956,0.94377349,2960.6,2959.6,0.16914]
[1769198343161,6.53,2960.7,2959.6,0.16914]
[1769198343357,6.541,2960.6,2959.6,0.16914]
[1769198343861,3.52819918,2960.5,2959.6,0.16914]
[1769198345056,0.94477391,2960.4,2959.6,0.16914]
[1769198345262,3.52819918,2960.5,2959.6,0.16914]
[1769198345562,0.94494163,2960.4,2959.6,0.16914]
[1769198345760,3.52819918,2960.5,2959.6,0.16914]
[1769198345958,0.94493856,2960.4,2959.6,0.16914]
[1769198346164,0.94515672,2960.3,2959.6,0.16914]
[1769198346365,3.52819918,2960.5,2959.6,0.16914]
[1769198346564,0.94515174,2960.4,2959.6,0.16914]
[1769198346765,3.52819918,2960.5,2959.6,0.16914]
[1769198347068,0.94529622,2960.4,2959.6,0.16914]
[1769198347367,3.52819918,2960.5,2959.6,0.16914]
[1769198347568,0.94557505,2960.4,2959.6,0.16914]
[1769198347867,3.52819918,2960.5,2959.6,0.16914]
[1769198348067,0.94557645,2960.4,2959.6,0.16914]
[1769198348364,0.94557645,2960.3,2959.6,0.16914]
[1769198348565,3.52819918,2960.5,2959.6,0.16914]
[1769198348766,0.94571654,2960.4,2959.6,0.16914]
[1769198348972,0.94571654,2960.3,2959.6,0.16914]
[1769198349161,3.52819918,2960.5,2959.6,0.16914]
[1769198349361,0.94616173,2960.4,2959.6,0.16914]
[1769198349557,0.94616173,2960.3,2959.6,0.16914]
[1769198349858,3.52819918,2960.5,2959.6,0.16914]
[1769198350062,0.94609022,2960.4,2959.6,0.16914]
[1769198350263,0.94609022,2960.3,2959.6,0.16914]
[1769198350571,0.94609022,2960.2,2959.6,0.16914]
[1769198350770,3.52819918,2960.5,2959.6,0.16914]
[1769198351067,1.27796324,2960.4,2959.6,0.16914]
[1769198351258,0.94677372,2960.3,2959.6,0.16914]
[1769198351458,0.94677372,2960.2,2959.6,0.16914]
[1769198351769,3.52819918,2960.5,2959.6,0.16914]
[1769198352068,1.27832384,2960.4,2959.6,0.16914]
[1769198352270,0.94703721,2960.3,2959.6,0.16914]
[1769198352470,0.94703721,2960.2,2959.2,0.00322033]
[1769198352771,0.94726494,2960.1,2959.2,0.00322033]
[1769198353070,3.65086149,2960.3,2959.2,0.00322033]
[1769198353272,0.94754088,2960.2,2959.2,0.00322033]
[1769198353569,0.94754088,2960.1,2959.2,0.00322033]
[1769198353770,0.94754088,2960.0,2959.2,0.00322033]
[1769198353966,3.65086149,2960.3,2959.2,0.00322033]
[1769198354269,0.94746826,2960.2,2959.2,0.00322033]
[1769198354470,0.94746826,2960.1,2959.2,0.00322033]
[1769198354672,3.65086149,2960.3,2959.2,0.00322033]
[1769198354871,0.94732307,2960.2,2959.2,0.00322033]
[1769198355072,0.94732307,2960.1,2959.2,0.00322033]
[1769198355268,3.65086149,2960.3,2959.2,0.00322033]
[1769198355468,0.94727711,2960.2,2959.2,0.00322033]
[1769198355668,0.94727711,2960.1,2959.2,0.00322033]
[1769198355870,3.65086149,2960.3,2959.2,0.00322033]
[1769198356069,0.94721396,2960.2,2959.2,0.00322033]
[1769198356269,0.94721396,2960.1,2959.2,0.00322033]
[1769198356473,3.65086149,2960.3,2959.3,0.16916]
[1769198356675,0.94701363,2960.2,2959.3,0.16916]
[1769198356873,0.94701363,2960.1,2959.3,0.16916]
[1769198357173,3.65086149,2960.3,2959.3,0.16916]
[1769198357374,0.94690903,2960.2,2959.3,0.16916]
[1769198357672,0.94690903,2960.1,2959.3,0.16916]
[1769198357869,3.65086149,2960.3,2959.3,0.16916]
[1769198358069,0.94690784,2960.2,2959.3,0.16916]
[1769198358271,0.94690784,2960.1,2959.3,0.16916]
[1769198358472,3.65086149,2960.3,2959.3,0.16916]
[1769198358771,0.94686458,2960.2,2959.3,0.16916]
[1769198358974,0.94686458,2960.1,2959.3,0.16916]
[1769198359166,3.65086149,2960.3,2959.3,0.16916]
[1769198359366,0.94689884,2960.2,2959.3,0.16916]
[1769198359568,0.94689884,2960.1,2959.3,0.16916]
[1769198359768,3.65086149,2960.3,2959.3,0.16916]
[1769198359968,0.94690003,2960.2,2959.3,0.16916]
[1769198360169,0.94690003,2960.1,2959.3,0.16916]
[1769198360368,3.65086149,2960.3,2959.3,0.16916]
[1769198360570,3.65086149,2960.1,2959.2,0.00322033]
[1769198360776,3.65086149,2959.9,2958.7,0.1692]
[1769198360978,0.94679872,2959.8,2958.7,0.1692]
[1769198361276,3.65086149,2959.9,2958.7,0.1692]
[1769198361474,0.94647583,2959.8,2958.7,0.1692]
[1769198361772,4.59728104,2959.7,2958.7,0.1692]
[1769198361970,0.94641955,2959.6,2958.7,0.1730577]
[1769198362169,3.65086149,2959.7,2958.7,0.1730577]
[1769198364576,3.65086149,2959.7,2958.8,0.16919]
[1769198364777,3.65086149,2960.2,2959.1,0.16917]
[1769198365178,3.65086149,2960.2,2959.2,0.16917]
[1769198365377,0.00506739,2959.9,2959.2,0.16917]
[1769198371486,0.00506739,2959.9,2959.4,0.16916]
[1769198371685,0.00506739,2959.9,2959.0,3.78486772]
[1769198371686,1e-08,2959.9,2959.0,3.78486772]
[1769198371878,1e-08,2959.9,2959.3,0.00506739]
[1769198372482,1e-08,2959.9,2959.5,0.16915]
[1769198373688,3.65086149,2960.6,2959.5,0.16915]
[1769198373882,1.27755237,2960.5,2959.5,0.16915]
[1769198374083,0.94643264,2960.4,2959.5,0.16915]
[1769198374387,3.65086149,2960.6,2959.5,0.16915]
[1769198374584,1.2775402,2960.5,2959.5,0.16915]
[1769198374787,0.94642356,2960.4,2959.5,0.16915]
[1769198375085,0.94642356,2960.4,2959.3,0.00506739]
[1769198375086,3.65086149,2960.6,2959.6,0.16915]
[1769198375288,1.27751675,2960.5,2959.6,0.16915]
[1769198375585,0.94640236,2960.4,2959.6,0.16915]
[1769198375780,3.65086149,2960.6,2959.6,0.16915]
[1769198375986,1.27739833,2960.5,2959.6,0.16915]
[1769198376186,0.94631871,2960.4,2959.6,0.16915]
[1769198376387,3.65086149,2960.6,2959.6,0.16915]
[1769198376691,4.75504855,2960.5,2959.6,0.16915]
[1769198376882,0.94630442,2960.4,2959.3,0.00506739]
[1769198377083,4.36532875,2960.2,2959.3,0.00506739]
[1769198377390,4.42397458,2960.1,2959.3,0.00506739]
[1769198377578,3.47767016,2960.1,2959.3,0.00506739]
[1769198378183,3.47767016,2960.5,2959.4,0.16916]
[1769198378384,0.9462786,2960.4,2959.4,0.16916]
[1769198378686,0.9462786,2960.3,2959.4,0.16916]
[1769198378888,3.47767016,2960.5,2959.4,0.16916]
[1769198379092,0.94627501,2960.4,2959.4,0.16916]
[1769198379286,0.94627501,2960.3,2959.4,0.16916]
[1769198379485,3.47767016,2960.5,2959.4,0.16916]
[1769198379790,0.94628976,2960.4,2959.4,0.16916]
[1769198379994,0.94628976,2960.3,2959.4,0.16916]
[1769198380186,3.47767016,2960.5,2959.4,0.16916]
[1769198380387,0.94630477,2960.4,2959.4,0.16916]
[1769198380586,0.94630477,2960.3,2959.4,0.16916]
[1769198380885,3.47767016,2960.5,2959.4,0.16916]
[1769198381183,0.94630473,2960.4,2959.4,0.16916]
[1769198381380,0.94630473,2960.3,2959.4,0.16916]
[1769198381587,3.47767016,2960.5,2959.4,0.16916]
[1769198381787,0.9462558,2960.4,2959.4,0.16916]
[1769198381990,0.9462558,2960.3,2959.4,0.16916]
[1769198382190,3.47767016,2960.5,2959.4,0.16916]
[1769198382393,3.382,2960.9,2959.5,0.16915]
[1769198382394,0.94627266,2960.4,2959.5,0.16915]
[1769198382594,10.09467016,2960.8,2959.5,0.16915]
[1769198382795,4.75510177,2960.7,2959.5,0.16915]
[1769198383092,1.27743161,2960.6,2959.5,0.16915]
[1769198383293,0.94637444,2960.5,2959.5,0.16915]
[1769198383492,0.94637444,2960.4,2959.5,0.16915]
[1769198383690,3.47767016,2960.7,2959.5,0.16915]
[1769198383890,1.27736462,2960.6,2959.5,0.16915]
[1769198384093,3.47767016,2960.7,2959.5,0.16915]
[1769198384094,0.94632758,2960.5,2959.5,0.16915]
[1769198384294,10.10367016,2960.7,2959.5,0.16915]
[1769198384494,1.27729815,2960.6,2959.5,0.16915]
[1769198384694,0.94627944,2960.5,2959.5,0.16915]
[1769198384894,10.10667016,2960.7,2959.5,0.16915]
[1769198385095,0.00341372,2961.2,2960.2,0.16911]
[1769198385301,4.75491272,2961.1,2960.2,0.16911]
[1769198385495,0.94625055,2961.0,2960.4,0.1691]
[1769198385798,0.00341372,2961.2,2960.4,0.1691]
[1769198389995,3.48108388,2961.2,2960.4,0.1691]
[1769198391195,0.00341372,2961.2,2960.4,0.1691]
[1769198392195,3.48108388,2961.2,2959.8,0.16913]
[1769198392404,3.47767016,2961.0,2959.8,0.16913]
[1769198394400,0.00341372,2961.2,2959.8,0.16913]
[1769198394705,0.00341372,2961.2,2960.3,0.16911]
[1769198395204,0.00341372,2961.2,2959.8,3.45071111]
[1769198395394,0.00341372,2961.2,2960.5,0.16909]
[1769198396402,3.47767016,2962.3,2960.9,0.16907]
[1769198396703,4.75547465,2962.2,2960.9,0.16907]
[1769198396904,0.94702506,2962.1,2960.9,0.16907]
[1769198397404,0.95134283,2962.1,2961.3,0.00506739]
[1769198397605,0.00431777,2962.1,2961.3,0.00506739]
[1769198401410,0.00431777,2962.1,2961.4,0.16904]
[1769198401609,3.47767016,2962.9,2961.4,0.16904]
[1769198401909,3.47767016,2962.7,2961.4,0.16904]
[1769198402502,3.48092244,2962.7,2961.4,0.16904]
[1769198402807,3.48092244,2962.7,2961.3,0.00506739]
[1769198403009,3.54406731,2962.2,2960.9,0.00295708]
[1769198403500,3.54406731,2962.2,2960.9,0.17202708]
[1769198404409,3.54406731,2962.1,2960.5,0.16909]
[1769198404609,3.54406731,2961.9,2960.5,0.16909]
[1769198404811,0.94464685,2961.8,2959.9,0.16913]
[1769198405009,3.54406731,2961.6,2959.9,0.16913]
[1769198405512,3.54406731,2961.6,2960.0,0.16913]
[1769198405712,3.54406731,2961.6,2960.0,0.17219064]
[1769198406310,0.94480668,2961.5,2960.0,0.17219064]
[1769198406614,3.54406731,2961.3,2959.3,0.16916]
[1769198406820,3.54406731,2961.1,2959.3,0.16916]
[1769198407019,3.54406731,2960.9,2959.3,0.16916]
[1769198407321,3.54406731,2960.7,2958.3,3.49363333]
[1769198407523,3.63449494,2960.5,2958.3,3.49363333]
[1769198407723,4.57923181,2960.4,2959.0,0.16918]
[1769198407924,0.00506739,2959.8,2959.0,0.16918]
[1769198408721,0.00506739,2959.8,2958.6,0.1692]
[1769198409322,3.63956233,2959.8,2958.6,0.1692]
[1769198409520,3.63956233,2959.8,2958.3,0.00321061]
[1769198411522,3.63956233,2959.8,2958.4,0.16921]
[1769198411821,0.00506739,2959.8,2958.6,0.1692]
[1769198413922,3.63956233,2959.8,2958.3,0.00321061]
[1769198414825,3.63449494,2959.6,2958.3,0.00321061]
[1769198416824,3.63449494,2959.6,2957.5,0.16927]
[1769198417025,3.63449494,2959.6,2957.6,0.16926]
[1769198417221,3.63449494,2959.6,2957.7,0.16925]
[1769198417931,3.63449494,2959.4,2957.7,0.00414977]
[1769198418134,3.63449494,2959.2,2957.7,0.00414977]
[1769198418429,0.00506739,2959.8,2957.7,0.00414977]
[1769198418430,3.63449494,2959.0,2957.7,0.00414977]
[1769198419017,3.63449494,2959.0,2957.2,0.16929]
[1769198419228,3.80367494,2959.0,2956.6,3.66295333]
[1769198419423,3.63449494,2958.6,2956.6,0.16932]
[1769198419730,3.63449494,2958.4,2956.6,0.16932]
[1769198419922,3.63881585,2958.4,2956.6,0.17323993]
[1769198420324,3.80803585,2958.4,2956.6,0.00391993]
[1769198420828,3.63449494,2958.1,2956.6,0.00391993]
[1769198421033,3.63449494,2957.7,2956.6,0.00391993]
[1769198421427,3.63449494,2957.7,2956.1,0.16935]
[1769198421627,3.63449494,2957.7,2955.6,0.16938]
[1769198422230,3.80375494,2957.7,2955.2,3.49363333]
[1769198422824,3.80375494,2957.7,2955.2,3.49664746]
[1769198423034,3.63449494,2957.6,2955.2,3.49664746]
[1769198423633,3.63449494,2957.6,2955.8,0.16936]
[1769198423936,40.8,2957.5,2955.9,0.16936]
[1769198424232,40.8,2957.5,2955.5,3.49363333]